bitfinex-derivatives/quotes_BNBF0:USTF0_20250406
["timestamp","ask_amount","ask_price","bid_price","bid_amount"]
[1743928616299,0.506,588.36,587.77,0.28857343]
[1743928616300,0.57571018,588.33,587.77,0.28857343]
[1743928616501,0.57571018,588.35,587.77,0.28857343]
[1743928616700,0.57571018,588.34,587.77,0.28857343]
[1743928617005,0.57583757,588.35,587.77,0.28857343]
[1743928617205,0.57583757,588.34,587.77,0.28857343]
[1743928617400,0.57583757,588.33,587.77,0.28857343]
[1743928617609,0.57583757,588.35,587.77,0.28857343]
[1743928617810,0.57583757,588.34,587.77,0.28857343]
[1743928618010,0.57583757,588.33,587.77,0.34557343]
[1743928618311,0.57583757,588.32,587.78,0.28857343]
[1743928618511,0.57583757,588.35,587.78,0.28857343]
[1743928618708,0.57583757,588.34,587.78,0.28857343]
[1743928618905,0.57583757,588.33,587.78,0.28857343]
[1743928619206,0.57583757,588.32,587.78,0.28857343]
[1743928619405,0.57583757,588.31,587.78,0.28857343]
[1743928619710,0.57583757,588.3,587.78,0.28857343]
[1743928619910,0.57583757,588.35,587.78,0.28857343]
[1743928620109,0.57583757,588.34,587.78,0.28857343]
[1743928620308,0.57583757,588.33,587.78,0.28857343]
[1743928620508,0.57583757,588.32,587.78,0.28857343]
[1743928620711,0.57583757,588.31,587.78,0.28857343]
[1743928620911,0.57583757,588.35,587.78,0.28857343]
[1743928621111,0.57583757,588.34,587.78,0.28857343]
[1743928621410,0.57583757,588.33,587.78,0.28857343]
[1743928621609,0.57583757,588.32,587.78,0.28857343]
[1743928621812,0.57583757,588.31,587.78,0.28857343]
[1743928622013,0.57583757,588.3,587.78,0.28857343]
[1743928622314,0.57583757,588.35,587.78,0.28857343]
[1743928622510,0.57583757,588.34,587.77,0.057]
[1743928622707,0.57583757,588.33,587.78,0.28857369]
[1743928622911,0.57583757,588.32,587.78,0.28857369]
[1743928623109,0.57583757,588.31,587.78,0.28857369]
[1743928623312,0.57583757,588.3,587.78,0.28857369]
[1743928623513,0.57583757,588.35,587.78,0.28857369]
[1743928623808,0.57583757,588.34,587.78,0.28857369]
[1743928624013,0.57583757,588.33,587.78,0.28857369]
[1743928624211,0.57583757,588.32,587.78,0.28857369]
[1743928624413,0.57583757,588.31,587.78,0.28857369]
[1743928624709,0.57583757,588.3,587.78,0.28857369]
[1743928625015,0.57583757,588.29,587.77,0.057]
[1743928625314,0.57583757,588.28,587.78,0.2885668]
[1743928625515,0.506,588.36,587.78,0.2885668]
[1743928625716,0.57628505,588.35,587.78,0.2885668]
[1743928625910,0.57628505,588.34,587.78,0.2885668]
[1743928626112,0.57628505,588.33,587.78,0.2885668]
[1743928626312,0.57628505,588.32,587.78,0.2885668]
[1743928626617,0.506,588.36,587.78,0.2885668]
[1743928626618,0.57628505,588.31,587.78,0.2885668]
[1743928626812,0.57628505,588.3,587.78,0.2885668]
[1743928627013,0.57628505,588.29,587.78,0.2885668]
[1743928627211,0.57628505,588.28,587.78,0.2885668]
[1743928627413,0.506,588.36,587.78,0.2885668]
[1743928627612,0.57634018,588.35,587.78,0.2885668]
[1743928627816,0.57634018,588.34,587.78,0.2885668]
[1743928628018,0.57634018,588.33,587.78,0.2885668]
[1743928628217,0.57634018,588.32,587.78,0.2885668]
[1743928628512,0.506,588.36,587.77,0.057]
[1743928628513,0.57634018,588.31,587.77,0.057]
[1743928628712,0.57634018,588.3,587.78,0.28856133]
[1743928628918,0.57634018,588.29,587.78,0.28856133]
[1743928629218,0.5763933,588.28,587.78,0.28856133]
[1743928629418,0.506,588.36,587.77,0.28856133]
[1743928629717,0.57642714,588.35,587.78,0.28856133]
[1743928629912,0.57642714,588.34,587.79,0.28856133]
[1743928630218,0.57642714,588.33,587.8,0.28856147]
[1743928630418,0.57642714,588.32,587.81,0.28856147]
[1743928630718,0.57642714,588.31,587.82,0.28856147]
[1743928630918,0.57642714,588.3,587.77,0.28856147]
[1743928631118,0.57642714,588.29,587.77,0.28856147]
[1743928631319,0.57642714,588.28,587.77,0.28856147]
[1743928631518,0.609,588.37,587.77,0.28856147]
[1743928631818,0.57653806,588.36,587.77,0.057]
[1743928632019,0.609,588.37,587.77,0.057]
[1743928632020,0.57653806,588.35,587.77,0.057]
[1743928632211,0.609,588.37,587.77,0.057]
[1743928632212,0.57653806,588.34,587.77,0.057]
[1743928632414,0.57653806,588.33,587.77,0.057]
[1743928632613,0.57653806,588.32,587.77,0.057]
[1743928632814,0.57653806,588.31,587.77,0.057]
[1743928633016,0.57656343,588.3,587.77,0.057]
[1743928633218,0.57656343,588.29,587.77,0.057]
[1743928633414,0.57656343,588.28,587.77,0.057]
[1743928633615,0.57656343,588.27,587.77,0.057]
[1743928633818,0.57656343,588.26,587.77,0.057]
[1743928634013,0.57656343,588.25,587.77,0.057]
[1743928634217,0.57656343,588.24,587.77,0.057]
[1743928634417,1.51474967,588.97,587.77,0.057]
[1743928634618,0.3395874,588.95,587.77,0.057]
[1743928634819,0.88925145,588.94,587.77,0.057]
[1743928635020,0.3396047,588.92,587.77,0.057]
[1743928635222,0.88925145,588.91,587.77,0.057]
[1743928635421,1.22886768,588.9,587.77,0.057]
[1743928635621,1.22887345,588.89,587.77,0.057]
[1743928635818,1.22887921,588.88,587.77,0.057]
[1743928636022,1.22888498,588.87,587.77,0.057]
[1743928636220,1.22889075,588.86,587.77,0.057]
[1743928636426,1.22889652,588.85,587.77,0.057]
[1743928636725,1.22890228,588.84,587.77,0.057]
[1743928636926,1.22890805,588.83,587.77,0.057]
[1743928637124,1.22891382,588.82,587.77,0.057]
[1743928637324,1.22891959,588.81,587.77,0.057]
[1743928637521,1.22892536,588.8,587.77,0.057]
[1743928637722,0.91644411,588.79,587.77,0.057]
[1743928637921,0.88925145,588.78,587.77,0.057]
[1743928638124,0.57676443,588.77,587.77,0.057]
[1743928638321,0.57704083,588.76,587.77,0.057]
[1743928638520,0.57704083,588.75,587.78,0.28855675]
[1743928638725,0.57704083,588.74,587.78,0.28855675]
[1743928638926,0.57704083,588.73,587.78,0.28855675]
[1743928639122,0.57704083,588.72,587.78,0.28855675]
[1743928639327,0.57704076,588.71,587.78,0.28855675]
[1743928639526,0.57704076,588.7,587.78,0.28855675]
[1743928639725,0.29577752,588.76,587.78,0.28855675]
[1743928639726,0.57704076,588.69,587.78,0.28855675]
[1743928639926,0.57704076,588.68,587.78,0.28855675]
[1743928640122,0.57704076,588.67,587.78,0.28855675]
[1743928640429,0.57704164,588.66,587.78,0.28855675]
[1743928640624,0.57704164,588.65,587.78,0.28855675]
[1743928640919,0.57704164,588.64,587.78,0.28855675]
[1743928641121,0.57704164,588.63,587.78,0.28855675]
[1743928641324,0.57704164,588.62,587.78,0.28855675]
[1743928641520,0.57704164,588.61,587.78,0.28855675]
[1743928641724,0.57704164,588.6,587.78,0.28855675]
[1743928641923,0.57704164,588.59,587.78,0.28855675]
[1743928642224,0.57704164,588.58,587.78,0.28855675]
[1743928642419,0.57704164,588.57,587.78,0.28855675]
[1743928642622,0.57704164,588.56,587.78,0.28855675]
[1743928642827,0.57704164,588.55,587.78,0.28855675]
[1743928643022,0.57704164,588.54,587.78,0.28855675]
[1743928643227,0.57704164,588.53,587.78,0.28855675]
[1743928643427,0.33967968,588.79,587.78,0.28855675]
[1743928643428,0.57704164,588.52,587.78,0.28855675]
[1743928643728,0.57704164,588.51,587.78,0.28855675]
[1743928643925,0.57704164,588.5,587.78,0.28855675]
[1743928644125,0.57704164,588.49,587.78,0.28855675]
[1743928644323,0.33967968,588.79,587.78,0.28855675]
[1743928644324,0.57704164,588.48,587.78,0.28855675]
[1743928644526,0.57704164,588.47,587.78,0.28855675]
[1743928644727,0.57704164,588.46,587.78,0.28855675]
[1743928644923,0.57704164,588.45,587.77,0.057]
[1743928645127,0.57704164,588.44,587.78,0.28855054]
[1743928645327,0.57704164,588.43,587.78,0.28855054]
[1743928645521,0.57704164,588.42,587.77,0.057]
[1743928645719,0.57713571,588.41,587.78,0.28852262]
[1743928645925,0.57713571,588.4,587.78,0.28852262]
[1743928646227,0.57713571,588.39,587.78,0.28852262]
[1743928646528,0.57713571,588.38,587.78,0.28852262]
[1743928646722,0.57713571,588.37,587.79,0.28851757]
[1743928646925,0.57713571,588.36,587.79,0.28851757]
[1743928647124,0.57713571,588.35,587.76,0.34027494]
[1743928647325,0.57713571,588.34,587.8,0.28851548]
[1743928647531,0.2957373,588.61,587.76,0.34027494]
[1743928647727,0.57715236,588.6,587.77,0.288515]
[1743928647928,0.57715236,588.59,587.77,0.288515]
[1743928648131,0.57715236,588.58,587.77,0.288515]
[1743928648334,0.57715236,588.57,587.77,0.288515]
[1743928648628,0.57715236,588.56,587.77,0.288515]
[1743928648831,0.57715236,588.55,587.77,0.288515]
[1743928649033,0.57715236,588.54,587.77,0.345515]
[1743928649231,0.57715236,588.53,587.78,0.288515]
[1743928649536,0.5770563,588.52,587.78,0.288515]
[1743928649735,0.5770563,588.51,587.78,0.288515]
[1743928650035,0.5770563,588.5,587.79,0.28851898]
[1743928650229,0.5770563,588.49,587.78,0.28851898]
[1743928650430,0.5770563,588.48,587.79,0.28851898]
[1743928650633,0.5770563,588.47,587.78,0.28851898]
[1743928650935,0.5770563,588.46,587.79,0.28851898]
[1743928651136,0.5770563,588.45,587.78,0.28851898]
[1743928651336,0.5770563,588.44,587.79,0.28851898]
[1743928651534,0.5770563,588.43,587.8,0.28851898]
[1743928651733,0.5770563,588.42,587.78,0.28851898]
[1743928651934,0.5770563,588.41,587.81,0.28851898]
[1743928652133,0.5770563,588.4,587.82,0.28851898]
[1743928652332,0.5770563,588.39,587.77,0.057]
[1743928652536,0.5770563,588.38,587.78,0.28850873]
[1743928652736,0.5770563,588.37,587.78,0.28850873]
[1743928652928,0.29574736,588.66,587.78,0.28850873]
[1743928653133,0.57692238,588.65,587.78,0.28850873]
[1743928653333,0.57692238,588.64,587.78,0.28850873]
[1743928653537,0.57692238,588.63,587.78,0.28850873]
[1743928653729,0.57692238,588.62,587.78,0.28850873]
[1743928653934,0.57692238,588.61,587.78,0.28850873]
[1743928654233,0.57692238,588.6,587.78,0.28850873]
[1743928654535,0.29571343,588.77,587.78,0.28850873]
[1743928654737,0.57670185,588.76,587.78,0.28850873]
[1743928654936,0.57670185,588.75,587.78,0.28850873]
[1743928655133,0.57670185,588.74,587.78,0.28850873]
[1743928655330,0.57670185,588.73,587.78,0.28850873]
[1743928655636,0.57670185,588.72,587.78,0.28850873]
[1743928655836,0.57670185,588.71,587.78,0.28850873]
[1743928656030,0.57670185,588.84,587.78,0.28850873]
[1743928656233,0.57670185,588.83,587.78,0.28850873]
[1743928656433,0.57670185,588.82,587.78,0.28850873]
[1743928656634,0.57588308,588.81,587.79,0.28833933]
[1743928656835,0.57588308,588.8,587.78,0.28833933]
[1743928657036,0.57588308,588.79,587.79,0.28833933]
[1743928657236,0.57588308,588.84,587.78,0.28833933]
[1743928657432,0.57588308,588.83,587.78,0.28833933]
[1743928657637,0.57588308,588.84,587.78,0.28833933]
[1743928657940,0.57588308,588.83,587.78,0.28833933]
[1743928658138,0.514,588.85,587.78,0.28833933]
[1743928658338,0.514,588.85,587.79,0.34025757]
[1743928658538,0.514,588.85,587.8,0.28833933]
[1743928658736,0.514,588.85,587.81,0.34024599]
[1743928658939,0.514,588.85,587.82,0.28833933]
[1743928659340,0.514,588.85,587.83,0.34023442]
[1743928659540,0.514,588.85,587.84,0.28833933]
[1743928659741,0.514,588.85,587.85,0.34022284]
[1743928660141,0.514,588.85,587.86,0.28833636]
[1743928661440,0.514,588.85,587.87,0.34021127]
[1743928661635,0.514,588.85,587.88,0.28833636]
[1743928661842,0.514,588.85,587.89,0.34019969]
[1743928662042,0.514,588.85,587.9,0.28833636]
[1743928662237,0.514,588.85,587.91,0.34018812]
[1743928662439,0.514,588.85,587.92,0.28833636]
[1743928662642,0.514,588.85,587.93,0.34017655]
[1743928662838,0.514,588.85,587.94,0.28833636]
[1743928663240,0.514,588.85,587.93,0.34017655]
[1743928663439,0.514,588.85,587.94,0.2883474]
[1743928664841,0.514,588.85,587.93,0.34017655]
[1743928665047,0.514,588.85,587.94,0.28834934]
[1743928666047,0.514,588.85,587.93,0.34017655]
[1743928666244,0.514,588.85,587.94,0.2883448]
[1743928666641,0.514,588.85,587.95,0.28834481]
[1743928666843,0.514,588.85,587.96,0.28834481]
[1743928667043,0.514,588.85,587.94,0.28834481]
[1743928667347,0.514,588.85,587.95,0.28834481]
[1743928667647,0.514,588.85,587.94,0.28834481]
[1743928667843,0.514,588.85,587.93,0.34017655]
[1743928667844,0.514,588.85,587.95,0.28834481]
[1743928668043,0.514,588.85,587.94,0.28834481]
[1743928668248,0.514,588.85,587.95,0.28834481]
[1743928668449,0.514,588.85,587.94,0.28834481]
[1743928669045,0.428,588.84,587.94,0.28834481]
[1743928672352,0.428,588.84,587.93,0.6358121]
[1743928672353,0.428,588.84,587.95,0.28833804]
[1743928672549,0.428,588.84,587.93,0.6358121]
[1743928672550,0.428,588.84,587.94,0.28833804]
[1743928672749,0.428,588.84,587.93,0.6358121]
[1743928672750,0.428,588.84,587.95,0.28833804]
[1743928672950,0.428,588.84,587.96,0.28833804]
[1743928673252,0.428,588.84,587.94,0.28833804]
[1743928673654,0.428,588.84,587.94,0.58397359]
[1743928673854,0.428,588.84,587.95,0.62850302]
[1743928674054,0.428,588.84,587.96,0.28833804]
[1743928674455,0.428,588.84,587.97,0.3401534]
[1743928674656,0.428,588.84,587.98,0.28833804]
[1743928674950,0.428,588.84,587.99,0.34014183]
[1743928675154,0.428,588.84,588.0,0.28833804]
[1743928677050,0.428,588.84,588.01,0.057]
[1743928677250,0.428,588.84,588.02,0.28833804]
[1743928679955,0.428,588.84,588.03,0.28832464]
[1743928680157,0.428,588.84,588.04,0.28832464]
[1743928680363,0.428,588.84,588.02,0.28832464]
[1743928681665,0.428,588.84,588.01,0.057]
[1743928682067,0.428,588.84,588.02,0.28837049]
[1743928682467,0.428,588.84,588.01,0.057]
[1743928682670,0.29564811,588.83,588.01,0.057]
[1743928683268,0.29564811,588.83,588.02,0.28837172]
[1743928685369,0.428,588.84,588.02,0.28837172]
[1743928689565,0.428,588.84,588.03,0.28838037]
[1743928689768,0.428,588.84,588.02,0.28838037]
[1743928690071,0.428,588.84,588.03,0.28838037]
[1743928690270,0.428,588.84,588.02,0.28838037]
[1743928690471,0.428,588.84,588.03,0.28838037]
[1743928690667,0.428,588.84,588.02,0.28838037]
[1743928690871,0.428,588.84,588.03,0.28838037]
[1743928691068,0.428,588.84,588.02,0.28838037]
[1743928691273,0.428,588.84,588.03,0.28838037]
[1743928691472,0.428,588.84,588.02,0.28838037]
[1743928691673,0.428,588.84,588.03,0.28838037]
[1743928691872,0.428,588.84,588.02,0.28838037]
[1743928692168,0.80964058,588.85,588.03,0.28838037]
[1743928692368,0.80964058,588.85,588.02,0.28838037]
[1743928693074,0.80964058,588.85,588.03,0.28839043]
[1743928693274,0.80964058,588.85,588.02,0.28839043]
[1743928693475,0.80964058,588.85,588.03,0.28839043]
[1743928693676,0.80964058,588.85,588.02,0.28839043]
[1743928693975,0.80964058,588.85,588.01,0.057]
[1743928694174,0.80964058,588.85,588.02,0.28839295]
[1743928694369,0.514,588.85,588.02,0.28839295]
[1743928695470,0.514,588.85,588.01,0.057]
[1743928695673,0.2956117,588.84,588.02,0.28839954]
[1743928695872,0.2956117,588.84,588.01,0.057]
[1743928697278,0.57317394,589.12,588.01,0.057]
[1743928697478,0.91266911,589.11,588.01,0.057]
[1743928697678,0.91267487,589.1,588.01,0.057]
[1743928697878,0.91268063,589.09,588.02,0.28840656]
[1743928698178,0.9126864,589.08,588.02,0.28840656]
[1743928698378,0.91269216,589.07,588.0,0.28840656]
[1743928698577,0.91269792,589.06,588.0,0.28840656]
[1743928698779,1.22501128,589.05,588.0,0.28840656]
[1743928698978,1.22501704,589.04,588.0,0.28840656]
[1743928699177,1.2250228,589.03,588.0,0.28840656]
[1743928699374,1.22502857,589.02,588.0,0.28840656]
[1743928699575,1.22503433,589.01,588.0,0.28840656]
[1743928699778,0.91273251,589.0,588.0,0.28840656]
[1743928699979,0.374,589.05,588.0,0.28840656]
[1743928699980,0.91273827,588.99,588.0,0.28840656]
[1743928700279,0.57317394,588.98,588.0,0.28840656]
[1743928700475,0.57317394,588.97,588.0,0.28840656]
[1743928700681,0.57317394,588.96,588.01,0.057]
[1743928700976,0.57317394,588.95,588.02,0.28840656]
[1743928701176,0.57317394,588.94,588.02,0.28840656]
[1743928701378,0.57317394,588.93,588.02,0.28840656]
[1743928701573,0.57317394,588.92,588.02,0.28840656]
[1743928701776,0.57317394,588.91,588.02,0.28840656]
[1743928701981,0.57317394,588.9,588.02,0.28840656]
[1743928702177,0.57317394,588.89,588.02,0.28840656]
[1743928702378,0.57317394,588.88,588.02,0.28840656]
[1743928702579,0.57317394,588.87,588.02,0.28840656]
[1743928702779,0.57317394,588.86,588.02,0.28840656]
[1743928703079,0.57317394,588.85,588.03,0.28838804]
[1743928703279,0.57317394,588.84,588.02,0.28838804]
[1743928703480,0.57317394,588.83,588.03,0.28838804]
[1743928703676,0.29563053,588.85,588.02,0.28838804]
[1743928703881,0.57317394,588.84,588.02,0.28838804]
[1743928704181,0.57317394,588.83,588.02,0.28838804]
[1743928704376,0.57317394,588.82,588.02,0.28838804]
[1743928704582,0.57317394,588.81,588.02,0.28838804]
[1743928704881,0.57317394,588.84,588.02,0.28838804]
[1743928705079,0.57317394,588.83,588.02,0.28838804]
[1743928705283,0.57317394,588.82,588.02,0.28838804]
[1743928705486,0.57317394,588.81,588.02,0.28838804]
[1743928705685,0.57317394,588.8,588.02,0.28838804]
[1743928705985,0.57317394,588.79,588.02,0.28838804]
[1743928706179,0.57317394,588.78,588.02,0.28838804]
[1743928706379,0.57317394,588.77,588.02,0.28838804]
[1743928706584,0.29562802,588.9,588.02,0.28838804]
[1743928706783,0.57317394,588.89,588.02,0.28838804]
[1743928706981,0.57317394,588.88,588.02,0.28838804]
[1743928707185,0.57317394,588.87,588.02,0.28838804]
[1743928707386,0.57317394,588.86,588.02,0.28838804]
[1743928707682,0.57317394,588.85,588.02,0.28838804]
[1743928707886,0.57317394,588.84,588.02,0.28838804]
[1743928708083,0.57317394,588.83,588.02,0.28838804]
[1743928708283,0.29562802,588.9,588.02,0.28838804]
[1743928708284,0.57317394,588.82,588.02,0.28838804]
[1743928708488,0.57317394,588.89,588.02,0.28838804]
[1743928708682,0.57317394,588.88,588.02,0.28838804]
[1743928708882,0.57317394,588.87,588.02,0.28838804]
[1743928709088,0.57317394,588.86,588.02,0.28838804]
[1743928709285,0.57317394,588.85,588.02,0.28838804]
[1743928709483,0.57317394,588.84,588.03,0.28834442]
[1743928709683,0.57317394,588.83,588.03,0.28834442]
[1743928709887,0.57317394,588.82,588.03,0.28834442]
[1743928710089,0.57317394,588.81,588.04,0.28834442]
[1743928710287,0.57317394,588.8,588.05,0.28834442]
[1743928710488,0.57317394,588.98,588.02,0.28834442]
[1743928710689,0.57317394,588.97,588.03,0.28834442]
[1743928710890,0.57317394,588.96,588.04,0.28834442]
[1743928711086,0.5762552,588.95,588.02,0.28834442]
[1743928711289,0.5762552,588.94,588.03,0.28834442]
[1743928711487,0.5762552,588.93,588.02,0.28834442]
[1743928711692,0.5762552,588.92,588.02,0.28834442]
[1743928711892,0.5762552,588.91,588.02,0.28834442]
[1743928712092,0.5762552,588.9,588.02,0.28834442]
[1743928712292,0.5762552,588.89,588.03,0.3401187]
[1743928712493,0.5762552,588.88,588.04,0.28834442]
[1743928712690,0.5762552,588.87,588.05,0.34010713]
[1743928712895,0.5762552,588.86,588.06,0.28830528]
[1743928713093,0.5762552,588.85,588.06,0.28830528]
[1743928713289,0.5762552,588.84,588.06,0.28830528]
[1743928713490,0.5762552,588.83,588.06,0.28830528]
[1743928713697,0.5762552,588.82,588.06,0.28830528]
[1743928713895,0.5762552,588.81,588.06,0.28830528]
[1743928714091,0.406,588.83,588.06,0.28830528]
[1743928714293,0.57691408,588.82,588.06,0.28830528]
[1743928714489,0.57691408,588.81,588.06,0.28830528]
[1743928714693,0.406,588.83,588.06,0.28830528]
[1743928714897,0.5768487,588.82,588.06,0.28830528]
[1743928715096,0.5768487,588.81,588.06,0.28830528]
[1743928715297,0.406,588.83,588.06,0.28830528]
[1743928715497,0.57680909,588.82,588.06,0.28830528]
[1743928715698,0.57680909,588.81,588.06,0.28830528]
[1743928715997,0.57679744,588.8,588.07,0.28829519]
[1743928716195,0.406,588.83,588.06,0.28829519]
[1743928716396,0.57675189,588.82,588.07,0.28829519]
[1743928716698,0.57675885,588.81,588.08,0.28829519]
[1743928716892,0.406,588.83,588.06,0.28829519]
[1743928717097,0.57676021,588.82,588.06,0.28829519]
[1743928717298,0.57676021,588.81,588.06,0.28829519]
[1743928717492,0.57676021,588.82,588.06,0.28829519]
[1743928717698,0.57676021,588.81,588.05,0.34010713]
[1743928717999,0.57676021,588.82,588.06,0.28829284]
[1743928718199,0.406,588.83,588.06,0.28829284]
[1743928719498,0.965,588.83,588.06,0.34529284]
[1743928719693,0.965,588.83,588.07,0.28829284]
[1743928724203,0.965,588.83,588.08,0.28828729]
[1743928724501,0.965,588.83,588.09,0.28828729]
[1743928724700,0.965,588.83,588.07,0.5838789]
[1743928724904,0.965,588.83,588.08,0.28828729]
[1743928725703,0.965,588.83,588.07,0.29559161]
[1743928725900,0.965,588.83,588.09,0.28828729]
[1743928726106,0.965,588.83,588.1,0.28828729]
[1743928726503,0.965,588.83,588.11,0.28828729]
[1743928726903,0.965,588.83,588.12,0.28828729]
[1743928727105,0.965,588.83,588.08,0.28828729]
[1743928727404,0.965,588.83,588.07,0.29559161]
[1743928727605,0.965,588.83,588.08,0.28829142]
[1743928730511,0.965,588.83,588.07,0.28829142]
[1743928730713,0.965,588.83,588.08,0.28829142]
[1743928730912,0.965,588.83,588.07,0.28829142]
[1743928731610,0.965,588.83,588.07,0.58385039]
[1743928731811,0.965,588.83,588.08,0.28829142]
[1743928732411,0.965,588.83,588.09,0.28824858]
[1743928732615,0.965,588.83,588.1,0.28824858]
[1743928732815,0.965,588.83,588.08,0.28824858]
[1743928733611,0.965,588.83,588.07,0.58380504]
[1743928733813,0.965,588.83,588.08,0.28824858]
[1743928734016,0.965,588.83,588.09,0.28824886]
[1743928734212,0.965,588.83,588.08,0.28824886]
[1743928734414,0.965,588.83,588.09,0.28824886]
[1743928734613,0.965,588.83,588.1,0.28824886]
[1743928734812,0.965,588.83,588.08,0.28824886]
[1743928735013,0.965,588.83,588.09,0.28824886]
[1743928735215,0.965,588.83,588.08,0.28824886]
[1743928735416,0.965,588.83,588.09,0.28824886]
[1743928735714,0.965,588.83,588.1,0.28824886]
[1743928735918,0.965,588.83,588.08,0.28824886]
[1743928736814,0.965,588.83,588.09,0.28824886]
[1743928737019,0.965,588.83,588.08,0.28824886]
[1743928737219,0.965,588.83,588.09,0.28824886]
[1743928737520,0.965,588.83,588.1,0.28824886]
[1743928737714,0.965,588.83,588.08,0.28824886]
[1743928737917,0.965,588.83,588.09,0.28824886]
[1743928738119,0.965,588.83,588.08,0.28824886]
[1743928738320,0.965,588.83,588.09,0.28824886]
[1743928738520,0.965,588.83,588.08,0.28824886]
[1743928738721,0.965,588.83,588.09,0.28824886]
[1743928738920,0.965,588.83,588.08,0.28824886]
[1743928739120,0.965,588.83,588.09,0.28824886]
[1743928739320,0.965,588.83,588.09,0.057]
[1743928739520,0.965,588.83,588.1,0.28824886]
[1743928743016,0.965,588.83,588.09,0.35258659]
[1743928744722,0.965,588.83,588.1,0.28829075]
[1743928751422,0.965,588.83,588.11,0.28825707]
[1743928751619,0.965,588.83,588.1,0.28825707]
[1743928751821,0.965,588.83,588.11,0.28825707]
[1743928752019,0.965,588.83,588.1,0.28825707]
[1743928754826,0.965,588.83,588.11,0.28832655]
[1743928755026,0.965,588.83,588.09,0.35260918]
[1743928755027,0.965,588.83,588.1,0.28832655]
[1743928759626,0.965,588.83,588.09,0.35259286]
[1743928759829,0.965,588.83,588.1,0.28831396]
[1743928760633,0.965,588.83,588.09,0.35259286]
[1743928763333,0.965,588.83,588.09,0.057]
[1743928765135,0.965,588.83,588.1,0.28835356]
[1743928766735,0.57647562,588.82,588.1,0.28835356]
[1743928766932,0.57647562,588.81,588.11,0.28835335]
[1743928767133,0.57647562,588.8,588.1,0.28835335]
[1743928767436,0.57647562,588.79,588.11,0.28835335]
[1743928767643,0.57647562,588.78,588.1,0.28835335]
[1743928767836,0.57647562,588.77,588.11,0.28835335]
[1743928768036,0.57647562,588.76,588.1,0.28835335]
[1743928768237,0.57647562,588.75,588.11,0.28835335]
[1743928768436,0.57647562,588.74,588.1,0.28835335]
[1743928768637,0.57647562,588.73,588.09,0.057]
[1743928768833,0.57647562,588.72,588.1,0.28835305]
[1743928769037,0.57647562,588.71,588.1,0.28835305]
[1743928769237,0.57647562,588.89,588.1,0.28835305]
[1743928769438,0.57647562,588.88,588.06,0.28835305]
[1743928769737,0.57647562,588.88,587.8,1.26816657]
[1743928769738,0.57647562,588.87,588.07,0.28835305]
[1743928769938,0.57647562,588.86,587.81,0.28835305]
[1743928770133,0.57647562,588.85,587.82,0.62859325]
[1743928770333,0.57647562,588.84,587.83,0.62858747]
[1743928770639,0.57647562,588.83,587.87,1.26816657]
[1743928770842,0.57647562,588.82,587.88,0.62855853]
[1743928771133,0.57647562,588.81,587.89,0.62855274]
[1743928771338,0.57647562,588.8,587.9,0.62854696]
[1743928771534,0.57647562,588.79,587.91,0.62854117]
[1743928771733,0.57647562,588.78,587.92,0.62853538]
[1743928771938,0.57647562,588.77,587.93,0.6285296]
[1743928772137,0.57647562,588.76,587.94,0.62852381]
[1743928772338,0.57647562,588.75,587.95,0.62851803]
[1743928772535,0.57647562,588.74,587.96,0.62851224]
[1743928772735,0.57647562,588.73,587.97,0.3401534]
[1743928772940,0.57647562,588.87,587.98,0.28834813]
[1743928773142,0.57647562,588.86,587.98,0.28834813]
[1743928773341,0.57647562,588.85,587.98,0.28834813]
[1743928773536,0.57647562,588.84,587.98,0.28834813]
[1743928773737,0.57647562,588.83,587.98,0.28834813]
[1743928773937,0.57647562,588.82,587.98,0.28834813]
[1743928774239,0.57647562,588.81,587.98,0.28834813]
[1743928774435,0.57647562,588.8,587.99,0.28833679]
[1743928774641,0.57647562,588.79,587.99,0.28833679]
[1743928774841,0.57647562,588.78,588.0,0.28833679]
[1743928775040,0.57647562,588.77,588.01,0.28833679]
[1743928775238,0.57647562,588.76,587.98,0.28833679]
[1743928775540,0.57647562,588.85,587.99,0.28833679]
[1743928775739,0.57647562,588.84,587.98,0.28833679]
[1743928775936,0.57647562,588.83,587.99,0.28833679]
[1743928776143,0.57647562,588.82,587.98,0.28833679]
[1743928776343,0.57647562,588.81,587.98,0.28833679]
[1743928776643,0.57647562,588.8,587.98,0.28833679]
[1743928776843,0.57647562,588.85,587.99,0.34014183]
[1743928777043,0.57647562,588.84,588.0,0.28833679]
[1743928777241,0.57647562,588.83,588.0,0.28833679]